[Event "8th Mersin Open 2024"]
[Site "Mersin"]
[Date "2024.11.14"]
[Round "7"]
[White "Annaberdiyev, Meylis"]
[Black "Topuz, Mirac Melih"]
[Result "1-0"]
[ECO "D11"]
[WhiteElo "2443"]
[BlackElo "2097"]
[Annotator "RC"]
[PlyCount "105"]
[EventDate "2024.11.10"]
[EventType "swiss"]
[EventCountry "TUR"]
[SourceTitle "playchess.com"]
[Source "ChessBase"]
[SourceQuality "1"]
[TimeControl "5400+30"]

1. Nf3 {[%emt 0:01:00]} Nf6 {[%emt 0:02:00]} 2. c4 {[%emt 0:00:00]} c6 {[%emt 0:06:30]} 3. d4 {[%emt 0:01:00]} d5 {[%emt 0:00:30]} 4. Qc2 {[%emt 0:00:00]} g6 {[%emt 0:02:30]} 5. cxd5 {[%emt 0:00:00]} cxd5 {[%emt 0:01:30]} 6. Nc3 {[%emt 0:00:30]} Bg7 {[%emt 0:00:30]} 7. Bf4 {[%emt 0:00:00]} O-O {[%emt 0:01:30]} 8. e3 {[%emt 0:00:00]} Nc6 {[%emt 0:00:30]} 9. Be2 {[%emt 0:00:00]} Qb6 {[%emt 0:02:30]} 10. O-O {[%emt 0:02:00]} Bf5 {[%emt 0:00:30]} 11. Qb3 {[%emt 0:03:30]} Qxb3 {[%emt 0:01:30]} 12. axb3 {[%emt 0:00:00]} Rac8 {[%emt 0:03:30]} 13. Ne5 {[%emt 0:13:00]} a6 {[%emt 0:07:30]} 14. Rfc1 {[%emt 0:01:30]} Rfd8 {[%emt 0:05:30]} 15. h3 {[%emt 0:00:30]} Ne8 {[%emt 0:22:30]} 16. Nxc6 {[%emt 0:04:30]} Rxc6 {[%emt 0:00:30]} 17. g4 {[%emt 0:06:30]} Be6 {[%emt 0:00:30]} 18. Na4 {[%emt 0:00:30]} Rdc8 {[%emt 0:01:30]} 19. Rc5 {[%emt 0:01:30]} Bd7 {[%emt 0:08:30]} 20. b4 {[%emt 0:08:30]} Nd6 {[%emt 0:08:30]} 21. Rxc6 {[%emt 0:01:30]} Rxc6 {[%emt 0:00:30]} 22. Nc3 {[%emt 0:00:30]} e6 {[%emt 0:01:30]} 23. b5 {[%emt 0:03:30]} axb5 {[%emt 0:00:30]} 24. Nxb5 {[%emt 0:01:30]} Ne8 {[%emt 0:01:45]} 25. Nc3 {[%emt 0:03:30]} Rb6 {[%emt 0:01:30]} 26. Na4 {[%emt 0:03:30]} Rb4 {[%emt 0:02:52]} 27. Nc5 {[%emt 0:01:30]} Bc6 {[%emt 0:00:30]} 28. Nd3 {[%emt 0:00:30]} Rb3 {[%emt 0:00:30]} 29. Ra8 {[%emt 0:00:30]} f6 {[%emt 0:03:15]} 30. g5 {[%emt 0:00:30]} Kf7 {[%emt 0:00:26]} 31. gxf6 {[%emt 0:00:30]} Bxf6 {[%emt 0:00:30]} 32. Bg3 {[%emt 0:00:30]} Bb5 {[%emt 0:00:30]} 33. Nc5 {[%emt 0:00:30]} Rxb2 {[%emt 0:00:30]} 34. Bg4 {[%emt 0:00:30]} Bc6 {[%emt 0:00:30]} 35. Bxe6+ {[%emt 0:00:30]} Ke7 {[%emt 0:00:30]} 36. Rc8 {[%emt 0:00:30]} Bb5 {[%emt 0:00:30]} 37. Bg4 {[%emt 0:00:30]} h5 {[%emt 0:00:30]} 38. Bf3 {[%emt 0:00:30]} Bc6 {[%emt 0:00:30]} 39. h4 {[%emt 0:00:30]} Ng7 {[%emt 0:00:30]} 40. Rc7+ {[%emt 0:00:30]} Ke8 {[%emt 0:10:32]} 41. Rc8+ {[%emt 0:30:08]} Ke7 {[%emt 0:00:30]} 42. Nd3 {[%emt 0:00:30]} Rb1+ {[%emt 0:00:30]} 43. Kg2 {[%emt 0:00:40]} Nf5 {[%emt 0:03:27]} 44. Nf4 {[%emt 0:00:30]} Rb2 {[%emt 0:00:30]} 45. Nxg6+ {[%emt 0:00:30]} Kd7 {[%emt 0:00:30]} 46. Rf8 {[%emt 0:00:30]} Nxe3+ {[%emt 0:00:30]} 47. Kh1 {[%emt 0:00:30]} Rb1+ {[%emt 0:00:30]} 48. Kh2 {[%emt 0:00:30]} Nf1+ {[%emt 0:00:30]} 49. Kg2 {[%emt 0:00:30]} Nxg3 {[%emt 0:00:30]} 50. Rxf6 {[%emt 0:00:30]} Ne4 {[%emt 0:00:30]} 51. Ne5+ {[%emt 0:00:30]} Ke7 {[%emt 0:00:30]} 52. Rh6 {[%emt 0:00:30]} Rb3 {[%emt 0:00:30]} 53. Be2 {[%emt 0:00:30]} 1-0

[Event "8th Mersin Open 2024"]
[Site "Mersin"]
[Date "2024.11.14"]
[Round "7"]
[White "Schekachikhin, Maksim"]
[Black "Baradaran Tamadon, Arian"]
[Result "1/2-1/2"]
[ECO "E05"]
[WhiteElo "2353"]
[BlackElo "2323"]
[Annotator "RC"]
[PlyCount "176"]
[EventDate "2024.11.10"]
[EventType "swiss"]
[EventCountry "TUR"]
[SourceTitle "playchess.com"]
[Source "ChessBase"]
[SourceQuality "1"]
[TimeControl "5400+30"]

1. c4 e6 2. g3 d5 3. Bg2 Nf6 4. Nf3 Be7 5. O-O O-O 6. d4 dxc4 7. Qc2 a6 8. a4 Bd7 9. Rd1 Bc6 10. Bg5 b5 11. Bxf6 Bxf6 12. Nc3 bxa4 13. Nxa4 g6 14. Nc5 Qe7 15. Qxc4 Rd8 16. e3 Bd5 17. Qc2 a5 18. Qc3 Nd7 19. Nxd7 Qxd7 20. Ne5 Bxe5 21. dxe5 Qb5 22. Bxd5 Rxd5 23. Rxd5 Qxd5 24. Qxc7 Kg7 25. Rc1 a4 26. Qd6 Ra5 27. Rc8 Qxd6 28. exd6 Rd5 29. Rc6 Rd2 30. Rb6 Kf6 31. Rb4 e5 32. d7 Ke7 33. Rxa4 Rxb2 34. Ra5 Rd2 35. Rxe5+ Kf6 36. Ra5 Rxd7 37. Kg2 Rd2 38. g4 h6 39. h4 Rb2 40. Kg3 Rc2 41. f4 Kg7 42. h5 gxh5 43. Rxh5 Re2 44. Kf3 Re1 45. Ra5 Rh1 46. Ke4 Re1 47. Ra3 Kf6 48. Kf3 Rf1+ 49. Kg2 Re1 50. Kf2 Rh1 51. e4 Rh2+ 52. Kg3 Rh1 53. e5+ Kg7 54. Ra7 Re1 55. Kf2 Re4 56. Kf3 Re1 57. Rd7 Kg8 58. Rd3 Kh8 59. Re3 Rg1 60. Re2 Kg8 61. Rg2 Re1 62. Rh2 Kg7 63. Rh5 Kg6 64. Rf5 Rg1 65. Rf6+ Kg7 66. Rc6 Re1 67. Kf2 Re4 68. Rf6 Rb4 69. Ke3 Rc4 70. Rd6 Ra4 71. Rd4 Ra1 72. Ke4 Ra7 73. Kf5 Rb7 74. Rd5 Re7 75. Rc5 Kf8 76. Rc6 Kg7 77. Rc8 Re6 78. Rc7 Rb6 79. Re7 Rb5 80. Rd7 Ra5 81. Rc7 Rb5 82. Ke4 Rb4+ 83. Kf5 Rb5 84. Ra7 Rb6 85. Re7 Rb5 86. g5 hxg5 87. Kxg5 Rc5 88. f5 Rxe5 1/2-1/2

[Event "8th Mersin Open 2024"]
[Site "Mersin"]
[Date "2024.11.14"]
[Round "7"]
[White "Aliyev, Ravan"]
[Black "Ebrahimi Herab, Hamidreza"]
[Result "1/2-1/2"]
[ECO "A16"]
[WhiteElo "2338"]
[BlackElo "2386"]
[Annotator "RC"]
[PlyCount "99"]
[EventDate "2024.11.10"]
[EventType "swiss"]
[EventCountry "TUR"]
[SourceTitle "playchess.com"]
[Source "ChessBase"]
[SourceQuality "1"]
[TimeControl "5400+30"]

1. c4 {[%emt 0:07:00]} Nf6 {[%emt 0:05:00]} 2. Nc3 {[%emt 0:02:30]} d5 {[%emt 0:00:30]} 3. cxd5 {[%emt 0:00:30]} Nxd5 {[%emt 0:00:30]} 4. g3 {[%emt 0:00:00]} g6 {[%emt 0:00:30]} 5. Bg2 {[%emt 0:00:00]} Nb6 {[%emt 0:00:30]} 6. d3 {[%emt 0:00:00]} Bg7 7. Be3 {[%emt 0:00:00]} N8d7 {[%emt 0:01:00]} 8. Qd2 {[%emt 0:00:30]} h6 {[%emt 0:01:30]} 9. Nf3 {[%emt 0:00:30]} Nf6 {[%emt 0:00:30]} 10. h3 {[%emt 0:04:30]} c6 {[%emt 0:02:30]} 11. O-O {[%emt 0:00:30]} Bf5 {[%emt 0:03:30]} 12. Kh2 {[%emt 0:09:30]} g5 {[%emt 0:28:30]} 13. Nd4 {[%emt 0:00:30]} Bc8 {[%emt 0:04:30]} 14. Nb3 {[%emt 0:00:30]} a5 {[%emt 0:14:30]} 15. a4 {[%emt 0:02:30]} Nbd5 {[%emt 0:04:30]} 16. Bc5 {[%emt 0:12:30]} b6 {[%emt 0:03:30]} 17. Bd4 {[%emt 0:03:30]} Be6 {[%emt 0:03:30]} 18. Nxd5 {[%emt 0:08:30]} Bxd5 {[%emt 0:00:30]} 19. Qc2 {[%emt 0:00:30]} Bxg2 {[%emt 0:08:54]} 20. Kxg2 {[%emt 0:00:30]} Rc8 {[%emt 0:01:31]} 21. e4 {[%emt 0:01:30]} c5 {[%emt 0:01:20]} 22. Bc3 {[%emt 0:04:30]} c4 {[%emt 0:02:49]} 23. Nd4 {[%emt 0:16:30]} Nxe4 {[%emt 0:03:25]} 24. dxe4 {[%emt 0:00:30]} Bxd4 {[%emt 0:00:30]} 25. Rfd1 {[%emt 0:00:30]} e5 {[%emt 0:00:30]} 26. Qd2 {[%emt 0:01:30]} O-O {[%emt 0:04:18]} 27. Bxd4 {[%emt 0:00:30]} exd4 {[%emt 0:00:30]} 28. Qxd4 {[%emt 0:00:30]} Qxd4 {[%emt 0:00:00]} 29. Rxd4 {[%emt 0:00:00]} Rfd8 {[%emt 0:00:20]} 30. Rad1 {[%emt 0:03:00]} Rxd4 {[%emt 0:00:45]} 31. Rxd4 {[%emt 0:00:30]} c3 {[%emt 0:01:03]} 32. bxc3 {[%emt 0:00:30]} Rxc3 {[%emt 0:00:30]} 33. Rd6 {[%emt 0:00:30]} Kg7 {[%emt 0:00:30]} 34. Rxb6 {[%emt 0:00:30]} Rc4 {[%emt 0:00:30]} 35. Kf3 {[%emt 0:00:30]} Rxa4 {[%emt 0:00:30]} 36. Ra6 {[%emt 0:00:30]} h5 {[%emt 0:00:00]} 37. e5 {[%emt 0:06:03]} Ra2 {[%emt 0:01:36]} 38. Ke3 {[%emt 0:05:13]} a4 {[%emt 0:01:51]} 39. h4 {[%emt 0:02:42]} g4 {[%emt 0:01:19]} 40. Kf4 {[%emt 0:03:07]} Rxf2+ {[%emt 0:01:24]} 41. Kg5 {[%emt 0:00:02]} Rf3 {[%emt 0:00:00]} 42. Kxh5 {[%emt 0:01:33]} Rxg3 {[%emt 0:00:24]} 43. Rxa4 {[%emt 0:00:30]} Re3 {[%emt 0:00:30]} 44. Rxg4+ {[%emt 0:00:30]} Kh7 {[%emt 0:00:30]} 45. Rg5 {[%emt 0:00:30]} Re4 {[%emt 0:00:30]} 46. Rf5 {[%emt 0:00:30]} Kg7 {[%emt 0:00:30]} 47. Rg5+ {[%emt 0:00:30]} Kh7 {[%emt 0:00:00]} 48. Rf5 {[%emt 0:01:22]} Kg7 {[%emt 0:00:00]} 49. Kg5 {[%emt 0:00:30]} Rxe5 {[%emt 0:00:00]} 50. Rxe5 {[%emt 0:00:00]} 1/2-1/2

[Event "8th Mersin Open 2024"]
[Site "Mersin"]
[Date "2024.11.14"]
[Round "7"]
[White "Mammadova, Gulnar"]
[Black "Karabulut, Etka"]
[Result "1-0"]
[ECO "C10"]
[WhiteElo "2328"]
[BlackElo "2024"]
[Annotator "RC"]
[PlyCount "95"]
[EventDate "2024.11.10"]
[EventType "swiss"]
[EventCountry "TUR"]
[SourceTitle "playchess.com"]
[Source "ChessBase"]
[SourceQuality "1"]
[TimeControl "5400+30"]

1. e4 {[%emt 0:01:00]} e6 {[%emt 0:01:00]} 2. d4 {[%emt 0:00:30]} d5 {[%emt 0:00:00]} 3. Nc3 {[%emt 0:00:30]} dxe4 {[%emt 0:00:00]} 4. Nxe4 {[%emt 0:00:30]} Nd7 {[%emt 0:00:30]} 5. g3 {[%emt 0:02:30]} Ngf6 {[%emt 0:02:30]} 6. Nxf6+ {[%emt 0:00:30]} Nxf6 {[%emt 0:00:30]} 7. Bg2 {[%emt 0:00:00]} Be7 {[%emt 0:01:30]} 8. Nf3 {[%emt 0:01:00]} O-O {[%emt 0:00:30]} 9. O-O {[%emt 0:00:30]} c6 {[%emt 0:07:30]} 10. c3 {[%emt 0:03:30]} Qc7 {[%emt 0:08:30]} 11. Qe2 {[%emt 0:03:30]} Rd8 {[%emt 0:03:30]} 12. Re1 {[%emt 0:03:30]} Bd7 {[%emt 0:01:30]} 13. Ne5 {[%emt 0:04:30]} Be8 {[%emt 0:00:30]} 14. Bf4 {[%emt 0:01:30]} Qb6 {[%emt 0:02:30]} 15. Nc4 {[%emt 0:03:30]} Qa6 {[%emt 0:02:30]} 16. a4 {[%emt 0:04:30]} Rac8 {[%emt 0:03:30]} 17. b4 {[%emt 0:04:30]} Nd5 {[%emt 0:03:30]} 18. Bd2 {[%emt 0:06:30]} b6 {[%emt 0:06:30]} 19. a5 {[%emt 0:02:30]} Qb7 {[%emt 0:00:30]} 20. Ne5 {[%emt 0:03:30]} Qb8 {[%emt 0:15:30]} 21. Reb1 {[%emt 0:02:30]} Bd6 {[%emt 0:03:30]} 22. Nd3 {[%emt 0:03:30]} Ne7 {[%emt 0:02:30]} 23. h4 {[%emt 0:03:30]} Qc7 {[%emt 0:02:30]} 24. a6 {[%emt 0:02:30]} Nf5 {[%emt 0:02:30]} 25. h5 {[%emt 0:03:30]} Bf8 {[%emt 0:04:30]} 26. Be4 {[%emt 0:05:30]} f6 {[%emt 0:00:30]} 27. Nf4 {[%emt 0:00:30]} Bf7 {[%emt 0:01:30]} 28. Bc2 {[%emt 0:02:30]} Qd6 {[%emt 0:04:30]} 29. Re1 {[%emt 0:02:30]} Re8 {[%emt 0:02:00]} 30. Qd3 {[%emt 0:05:30]} g6 {[%emt 0:02:23]} 31. hxg6 {[%emt 0:00:30]} hxg6 {[%emt 0:00:09]} 32. g4 {[%emt 0:00:30]} Ne7 {[%emt 0:00:30]} 33. Bb3 {[%emt 0:02:30]} e5 {[%emt 0:04:46]} 34. Bxf7+ {[%emt 0:02:30]} Kxf7 {[%emt 0:00:04]} 35. dxe5 {[%emt 0:00:30]} Qxd3 {[%emt 0:00:06]} 36. Nxd3 {[%emt 0:00:30]} Rcd8 {[%emt 0:00:18]} 37. Re3 {[%emt 0:01:30]} Bh6 {[%emt 0:00:11]} 38. f4 {[%emt 0:00:30]} Bxf4 {[%emt 0:00:30]} 39. Nxf4 {[%emt 0:00:30]} Rxd2 {[%emt 0:00:30]} 40. exf6 {[%emt 0:00:30]} Kxf6 {[%emt 0:00:30]} 41. Rf1 {[%emt 0:01:20]} Kg5 {[%emt 0:03:29]} 42. Ne6+ {[%emt 0:00:30]} Kh4 {[%emt 0:04:06]} 43. c4 {[%emt 0:03:43]} Ng8 {[%emt 0:03:43]} 44. g5 {[%emt 0:01:48]} Rd4 {[%emt 0:00:09]} 45. Kf2 {[%emt 0:01:01]} Rd2+ {[%emt 0:01:09]} 46. Kf3 {[%emt 0:00:58]} Rh2 {[%emt 0:00:56]} 47. Re4+ {[%emt 0:00:30]} Kh3 {[%emt 0:00:00]} 48. Nf4+ {[%emt 0:00:00]} 1-0

[Event "8th Mersin Open 2024"]
[Site "Mersin"]
[Date "2024.11.14"]
[Round "7"]
[White "Koksal, Ege"]
[Black "Pourramezan chafjiri, Parsa"]
[Result "1-0"]
[ECO "A48"]
[WhiteElo "2316"]
[BlackElo "2081"]
[Annotator "RC"]
[PlyCount "96"]
[EventDate "2024.11.10"]
[EventType "swiss"]
[EventCountry "TUR"]
[SourceTitle "playchess.com"]
[Source "ChessBase"]
[SourceQuality "1"]
[TimeControl "5400+30"]

1. Nf3 {[%emt 0:09:00]} Nf6 {[%emt 0:01:00]} 2. d4 {[%emt 0:01:30]} g6 {[%emt 0:00:30]} 3. Bf4 {[%emt 0:00:30]} Bg7 {[%emt 0:00:30]} 4. e3 {[%emt 0:00:30]} d6 {[%emt 0:02:30]} 5. h3 {[%emt 0:00:30]} O-O {[%emt 0:01:30]} 6. Be2 {[%emt 0:00:00]} c5 {[%emt 0:01:30]} 7. c3 {[%emt 0:00:00]} b6 {[%emt 0:03:30]} 8. Nbd2 {[%emt 0:01:30]} cxd4 {[%emt 0:03:30]} 9. O-O {[%emt 0:07:30]} Nc6 {[%emt 0:00:30]} 10. exd4 {[%emt 0:00:30]} Re8 {[%emt 0:03:30]} 11. Nc4 {[%emt 0:03:30]} b5 {[%emt 0:05:30]} 12. Ne3 {[%emt 0:02:30]} Qb6 {[%emt 0:01:30]} 13. Bh2 {[%emt 0:04:30]} e5 {[%emt 0:08:30]} 14. a4 {[%emt 0:05:30]} exd4 {[%emt 0:05:30]} 15. cxd4 {[%emt 0:03:30]} Ba6 {[%emt 0:14:30]} 16. Bxd6 {[%emt 0:07:30]} Nxd4 {[%emt 0:11:30]} 17. Qxd4 {[%emt 0:03:30]} Qxd4 {[%emt 0:00:30]} 18. Nxd4 {[%emt 0:00:30]} Ne4 {[%emt 0:00:00]} 19. Nxb5 {[%emt 0:11:30]} Nxd6 {[%emt 0:06:00]} 20. Nxd6 {[%emt 0:04:30]} Bxe2 {[%emt 0:01:30]} 21. Nxe8 {[%emt 0:00:30]} Bxf1 {[%emt 0:00:30]} 22. Nxg7 {[%emt 0:00:00]} Be2 {[%emt 0:03:30]} 23. Re1 {[%emt 0:01:00]} Bd3 {[%emt 0:00:30]} 24. Rd1 {[%emt 0:06:30]} Be4 {[%emt 0:00:30]} 25. Rd4 {[%emt 0:03:30]} Bc6 {[%emt 0:01:30]} 26. Ngf5 {[%emt 0:00:30]} gxf5 {[%emt 0:00:30]} 27. Nxf5 {[%emt 0:03:30]} Be8 {[%emt 0:00:30]} 28. a5 {[%emt 0:01:07]} f6 {[%emt 0:02:30]} 29. b4 {[%emt 0:00:51]} Ba4 {[%emt 0:00:30]} 30. Nd6 {[%emt 0:00:34]} a6 {[%emt 0:00:30]} 31. Ne4 {[%emt 0:00:30]} Kf7 {[%emt 0:00:30]} 32. Rd6 {[%emt 0:00:30]} f5 {[%emt 0:00:30]} 33. Rf6+ {[%emt 0:04:33]} Kg7 {[%emt 0:01:46]} 34. Rxf5 {[%emt 0:00:49]} Rb8 {[%emt 0:00:14]} 35. Nc5 {[%emt 0:01:49]} Bb5 {[%emt 0:00:30]} 36. Rd5 {[%emt 0:00:20]} Re8 {[%emt 0:00:30]} 37. Rd6 {[%emt 0:00:45]} Re1+ {[%emt 0:00:30]} 38. Kh2 {[%emt 0:00:00]} Rf1 {[%emt 0:00:00]} 39. Kg3 {[%emt 0:00:53]} Rg1 {[%emt 0:00:00]} 40. f3 {[%emt 0:00:30]} h5 {[%emt 0:00:30]} 41. h4 {[%emt 0:00:30]} Rb1 {[%emt 0:00:30]} 42. Rxa6 {[%emt 0:00:30]} Rxb4 {[%emt 0:00:30]} 43. Rb6 {[%emt 0:00:30]} Ra4 {[%emt 0:00:30]} 44. a6 {[%emt 0:00:19]} Kh7 {[%emt 0:00:00]} 45. Rb7+ {[%emt 0:00:45]} Kg6 {[%emt 0:00:00]} 46. a7 {[%emt 0:00:00]} Kh6 {[%emt 0:00:00]} 47. Kf2 {[%emt 0:00:12]} Kg6 {[%emt 0:00:00]} 48. Ke3 {[%emt 0:00:18]} Kh6 {[%emt 0:00:00]} 1-0

[Event "8th Mersin Open 2024"]
[Site "Mersin"]
[Date "2024.11.14"]
[Round "7"]
[White "Zeynalli, Rashad"]
[Black "Mahmudzade, Yunis"]
[Result "1-0"]
[ECO "B01"]
[WhiteElo "2300"]
[BlackElo "2065"]
[Annotator "ChessBase"]
[PlyCount "99"]
[EventDate "2024.11.10"]
[EventType "swiss"]
[EventCountry "TUR"]
[SourceTitle "playchess.com"]
[Source "ChessBase"]
[SourceQuality "1"]
[TimeControl "5400+30"]

1. e4 {[%emt 0:01:00]} d5 {[%emt 0:08:00]} 2. exd5 {[%emt 0:00:30]} Nf6 {[%emt 0:00:00]} 3. Nf3 {[%emt 0:00:00]} Nxd5 {[%emt 0:00:00]} 4. d4 {[%emt 0:00:00]} Bg4 {[%emt 0:00:00]} 5. c4 {[%emt 0:00:30]} Bxf3 {[%emt 0:00:00]} 6. Qxf3 {[%emt 0:00:30]} Nb4 {[%emt 0:00:00]} 7. Qb3 {[%emt 0:00:00]} e5 {[%emt 0:00:00]} 8. a3 {[%emt 0:00:00]} N4c6 {[%emt 0:00:30]} 9. Qxb7 {[%emt 0:00:30]} Nxd4 {[%emt 0:00:00]} 10. Qxa8 {[%emt 0:00:30]} Nc2+ {[%emt 0:00:00]} 11. Ke2 {[%emt 0:00:00]} Nxa1 {[%emt 0:00:00]} 12. Nd2 {[%emt 0:00:00]} Nc2 {[%emt 0:01:00]} 13. Nb3 {[%emt 0:02:30]} Be7 {[%emt 0:03:30]} 14. g3 {[%emt 0:04:30]} O-O {[%emt 0:08:30]} 15. Bg2 {[%emt 0:03:30]} Qd7 {[%emt 0:04:30]} 16. Rd1 {[%emt 0:06:30]} Qa4 {[%emt 0:08:30]} 17. Qf3 {[%emt 0:02:30]} Nc6 {[%emt 0:03:30]} 18. Qxc6 {[%emt 0:08:30]} Qxb3 {[%emt 0:00:30]} 19. Qe4 {[%emt 0:05:30]} Nd4+ {[%emt 0:08:30]} 20. Rxd4 {[%emt 0:07:30]} exd4 {[%emt 0:00:00]} 21. Qxe7 {[%emt 0:00:30]} Qc2+ {[%emt 0:00:00]} 22. Bd2 {[%emt 0:00:30]} Qxc4+ {[%emt 0:00:00]} 23. Ke1 {[%emt 0:06:30]} Qb5 {[%emt 0:01:00]} 24. Qxc7 {[%emt 0:04:30]} Re8+ {[%emt 0:00:30]} 25. Kd1 {[%emt 0:00:30]} Qxb2 {[%emt 0:00:30]} 26. Bd5 {[%emt 0:05:30]} Qb1+ {[%emt 0:03:30]} 27. Qc1 {[%emt 0:01:30]} Qb5 {[%emt 0:07:30]} 28. Qc4 {[%emt 0:02:30]} Qd7 {[%emt 0:01:30]} 29. Bc6 {[%emt 0:08:30]} Qc8 {[%emt 0:01:30]} 30. f3 {[%emt 0:01:30]} Rd8 {[%emt 0:14:30]} 31. Bg5 {[%emt 0:09:30]} Rd6 {[%emt 0:00:00]} 32. Bd5 {[%emt 0:01:44]} Qxc4 {[%emt 0:00:00]} 33. Bxc4 {[%emt 0:00:30]} Rc6 {[%emt 0:00:30]} 34. Bf1 {[%emt 0:05:03]} Rc3 {[%emt 0:00:30]} 35. Be7 {[%emt 0:00:30]} Rxf3 {[%emt 0:00:30]} 36. Be2 {[%emt 0:02:39]} Rb3 {[%emt 0:04:30]} 37. Kd2 {[%emt 0:01:22]} h6 {[%emt 0:03:30]} 38. Bd3 {[%emt 0:01:39]} Rb2+ {[%emt 0:05:12]} 39. Bc2 {[%emt 0:00:30]} Rb5 {[%emt 0:00:30]} 40. a4 {[%emt 0:01:45]} Re5 {[%emt 0:04:27]} 41. Bd6 {[%emt 0:00:49]} Rd5 {[%emt 0:00:06]} 42. Bb4 {[%emt 0:00:12]} a5 {[%emt 0:00:32]} 43. Ba3 {[%emt 0:00:24]} d3 {[%emt 0:02:29]} 44. Bb3 {[%emt 0:01:39]} Rd8 {[%emt 0:01:01]} 45. Bc4 {[%emt 0:00:08]} h5 {[%emt 0:01:00]} 46. Bb2 {[%emt 0:01:03]} Rb8 {[%emt 0:02:24]} 47. Bc3 {[%emt 0:00:22]} Rb1 {[%emt 0:00:18]} 48. Bd5 {[%emt 0:03:16]} h4 {[%emt 0:00:30]} 49. gxh4 {[%emt 0:00:30]} g6 {[%emt 0:00:30]} 50. Kxd3 {[%emt 0:01:26]} 1-0

[Event "8th Mersin Open 2024"]
[Site "Mersin"]
[Date "2024.11.14"]
[Round "7"]
[White "Odeev, Handszar"]
[Black "Khalili, Saeid"]
[Result "1-0"]
[ECO "D41"]
[WhiteElo "2264"]
[BlackElo "2066"]
[Annotator "RC"]
[PlyCount "59"]
[EventDate "2024.11.10"]
[EventType "swiss"]
[EventCountry "TUR"]
[SourceTitle "playchess.com"]
[Source "ChessBase"]
[SourceQuality "1"]
[TimeControl "5400+30"]

1. e4 {[%emt 0:01:00]} e5 {[%emt 0:01:00]} 2. Nf3 {[%emt 0:00:30]} Nf6 {[%emt 0:00:00]} 3. Nxe5 {[%emt 0:02:30]} d6 {[%emt 0:00:00]} 4. Nf3 {[%emt 0:00:30]} Nxe4 {[%emt 0:00:30]} 5. d3 {[%emt 0:03:30]} Nf6 {[%emt 0:00:30]} 6. d4 {[%emt 0:00:30]} d5 {[%emt 0:01:30]} 7. c4 {[%emt 0:02:30]} c6 {[%emt 0:00:30]} 8. Nc3 {[%emt 0:02:30]} Be7 {[%emt 0:03:30]} 9. Bd3 {[%emt 0:04:30]} O-O {[%emt 0:00:30]} 10. O-O {[%emt 0:01:30]} Nbd7 {[%emt 0:04:30]} 11. cxd5 {[%emt 0:29:30]} Nxd5 {[%emt 0:00:30]} 12. Nxd5 {[%emt 0:02:30]} cxd5 {[%emt 0:00:30]} 13. Qb3 {[%emt 0:00:30]} Nf6 {[%emt 0:03:30]} 14. Re1 {[%emt 0:00:30]} b6 {[%emt 0:03:30]} 15. Ne5 {[%emt 0:01:30]} Bb7 {[%emt 0:00:30]} 16. Bg5 {[%emt 0:01:30]} h6 {[%emt 0:03:30]} 17. Bh4 {[%emt 0:02:30]} Qd6 {[%emt 0:07:30]} 18. a3 {[%emt 0:07:30]} a6 {[%emt 0:07:30]} 19. Bc2 {[%emt 0:09:30]} Rfe8 {[%emt 0:12:30]} 20. Bxf6 {[%emt 0:11:35]} Qxf6 {[%emt 0:01:30]} 21. Re3 {[%emt 0:01:47]} Qd6 {[%emt 0:00:30]} 22. Qd3 {[%emt 0:00:30]} g6 {[%emt 0:02:30]} 23. Rf3 {[%emt 0:05:43]} Bf6 {[%emt 0:03:30]} 24. Nxf7 {[%emt 0:01:03]} Kxf7 {[%emt 0:03:30]} 25. Qxg6+ {[%emt 0:00:30]} Ke7 {[%emt 0:01:30]} 26. Re1+ {[%emt 0:04:11]} Kd7 {[%emt 0:00:00]} 27. Bf5+ {[%emt 0:00:14]} Kc7 {[%emt 0:00:00]} 28. Rc3+ {[%emt 0:00:30]} Bc6 {[%emt 0:00:30]} 29. Rxe8 {[%emt 0:00:08]} Rxe8 {[%emt 0:02:30]} 30. Qxe8 {[%emt 0:00:03]} 1-0

[Event "8th Mersin Open 2024"]
[Site "Mersin"]
[Date "2024.11.14"]
[Round "7"]
[White "Sanz Wawer, Daniel"]
[Black "Lobanov, Sergei"]
[Result "0-1"]
[ECO "E14"]
[WhiteElo "2254"]
[BlackElo "2503"]
[Annotator "RC"]
[PlyCount "73"]
[EventDate "2024.11.10"]
[EventType "swiss"]
[EventCountry "TUR"]
[SourceTitle "playchess.com"]
[Source "ChessBase"]
[SourceQuality "1"]
[TimeControl "5400+30"]

1. d4 Nf6 2. Nf3 d5 3. c4 e6 4. e3 Be7 5. b3 O-O 6. Bd3 b6 7. O-O Bb7 8. Nbd2 c5 9. dxc5 bxc5 10. Bb2 Nbd7 11. cxd5 exd5 12. Qc2 h6 13. Rfd1 Bd6 14. Nf1 Rc8 15. Ng3 d4 16. Bf5 Rc7 17. Ne4 Ne5 18. Nxe5 Bxe5 19. Ng3 Qa8 20. exd4 cxd4 21. Qd2 Rd8 22. Bh3 Ne4 23. Nxe4 Bxe4 24. Rac1 Rxc1 25. Rxc1 Bf6 26. Rd1 a5 27. g3 a4 28. bxa4 Qxa4 29. a3 Rb8 30. Re1 Bg6 31. Rc1 Kh7 32. Bg2 Bg5 33. f4 Bf6 34. g4 Qb3 35. f5 Bg5 36. fxg6+ fxg6 37. Qe1 0-1

[Event "8th Mersin Open 2024"]
[Site "Mersin"]
[Date "2024.11.14"]
[Round "7"]
[White "Abbasi Abeluie, Mohammad Mehdi"]
[Black "Ikonnikov, Vyacheslav"]
[Result "1/2-1/2"]
[ECO "E68"]
[WhiteElo "2218"]
[BlackElo "2465"]
[Annotator "RC"]
[PlyCount "71"]
[EventDate "2024.11.10"]
[EventType "swiss"]
[EventCountry "TUR"]
[SourceTitle "playchess.com"]
[Source "ChessBase"]
[SourceQuality "1"]
[TimeControl "5400+30"]

1. c4 {[%emt 0:01:00]} Nf6 {[%emt 0:01:00]} 2. g3 {[%emt 0:04:30]} g6 {[%emt 0:01:30]} 3. Bg2 {[%emt 0:00:30]} Bg7 {[%emt 0:00:00]} 4. Nf3 {[%emt 0:00:30]} d6 {[%emt 0:01:00]} 5. d4 {[%emt 0:00:30]} Nbd7 {[%emt 0:00:30]} 6. O-O {[%emt 0:01:30]} O-O {[%emt 0:00:30]} 7. Nc3 {[%emt 0:00:30]} e5 {[%emt 0:00:00]} 8. e4 {[%emt 0:00:30]} Re8 {[%emt 0:00:00]} 9. h3 {[%emt 0:01:30]} a5 {[%emt 0:01:30]} 10. Re1 {[%emt 0:01:30]} exd4 {[%emt 0:08:30]} 11. Nxd4 {[%emt 0:00:00]} Nc5 {[%emt 0:00:00]} 12. Qc2 {[%emt 0:02:00]} Nfd7 {[%emt 0:03:00]} 13. Be3 {[%emt 0:10:30]} a4 {[%emt 0:08:30]} 14. Ndb5 {[%emt 0:13:30]} Nb6 {[%emt 0:02:30]} 15. Rad1 {[%emt 0:07:30]} Bd7 {[%emt 0:00:30]} 16. b3 {[%emt 0:09:30]} axb3 {[%emt 0:02:30]} 17. axb3 {[%emt 0:03:30]} Qb8 {[%emt 0:07:30]} 18. f4 {[%emt 0:04:30]} Bf8 {[%emt 0:05:30]} 19. Bxc5 {[%emt 0:06:30]} dxc5 {[%emt 0:00:30]} 20. e5 {[%emt 0:00:00]} Bc6 {[%emt 0:06:30]} 21. Nd5 {[%emt 0:04:00]} Nxd5 {[%emt 0:01:30]} 22. Bxd5 {[%emt 0:01:30]} Qc8 {[%emt 0:06:30]} 23. g4 {[%emt 0:04:30]} Bxb5 {[%emt 0:03:30]} 24. cxb5 {[%emt 0:00:30]} c6 {[%emt 0:00:30]} 25. bxc6 {[%emt 0:00:30]} bxc6 {[%emt 0:00:30]} 26. Bc4 {[%emt 0:00:30]} Ra7 {[%emt 0:04:30]} 27. f5 {[%emt 0:04:24]} gxf5 {[%emt 0:00:30]} 28. gxf5 {[%emt 0:00:30]} Kh8 {[%emt 0:00:30]} 29. Qf2 {[%emt 0:02:59]} Rd7 {[%emt 0:02:30]} 30. Qh4 {[%emt 0:04:53]} Rxe5 {[%emt 0:07:30]} 31. Rxd7 {[%emt 0:06:45]} Rxe1+ {[%emt 0:00:30]} 32. Qxe1 {[%emt 0:00:00]} Qxd7 {[%emt 0:00:30]} 33. Qe5+ {[%emt 0:00:00]} Kg8 {[%emt 0:00:30]} 34. Qg3+ {[%emt 0:00:00]} Bg7 {[%emt 0:00:30]} 35. Qb8+ {[%emt 0:00:29]} Bf8 {[%emt 0:00:30]} 36. Qg3+ {[%emt 0:00:00]} 1/2-1/2